{"text_format":"1","workbook":"xlsx","n_sheets":4,"sheets":["Титульный","Кроссворд","Расчётный","Итоговый"],"not_rendered":{"charts":0,"images":3,"macros":1,"external_links":0,"defined_names":0,"comments":1,"pivot_tables":0},"unopened":[],"bounds":{"document_bytes":16777216,"sheet_cells":100000,"rows_first":2000,"rows_last":500,"rows_between":2000,"halvings":0,"cell_chars":16384,"cell_head_chars":4096},"cells_cut":0,"cells_raw":0,"read":"whole","date_system":"1900"}

{"sheet":"Титульный","index":0,"n_rows":14,"n_cols":7,"rows_kept":14,"cut":false,"hidden":false,"merged":[[13,6,14,8],[13,10,14,12],[10,10,11,13],[10,6,11,8]]}
[]
[]
[]
[]
[]
[]
[]
[]
[]
[]
[null,null,null,null,null,null,"Фамилия Имя:"]
[]
[]
[null,null,null,null,null,null,"Класс:"]

{"sheet":"Кроссворд","index":1,"n_rows":13,"n_cols":24,"rows_kept":13,"cut":false,"hidden":false,"merged":[[1,23,10,48],[12,23,21,48]]}
[]
[null,null,null,null,null,null,null,null,null,null,null,null,null,null,null,null,null,null,null,null,null,null,null,"По вертикали:                                                                                                                                                                                        1. Объект, выполняющий алгоритм.                                                                                                  4. Величина, значение которой меняется в процессе исполнения алгоритма.                           5. Текстовое описание алгоритма.                                                                                                      6. Свойство алгоритма, отвечающее за понимание исполнителем команд алгоритма.                                                           8. Свойство алгоритма, подразумевающее однозначность толкования команд.                                                                                                              9. Свойство алгоритма, дающее возможность применения алгоритма для решения задачи того же класса задач.                                                                                                                     "]
[]
[]
[]
[]
[]
[]
[]
[]
[]
[]
[null,null,null,null,null,null,null,null,null,null,null,null,null,null,null,null,null,null,null,null,null,null,null,"По горизонтали:                                                                                                                                 2. Свойство алгоритма, означающее разбиение алгоритма на отдельные шаги.                       3. Описание последовательности действий для конкретного исполнителя.                                  7. Свойство алгоритма, обеспечивающее получение результата после исполнения алгоритма.                                                                                                                                             10. Графический способ записи алгоритма.                 "]

{"sheet":"Расчётный","index":2,"n_rows":14,"n_cols":5,"rows_kept":14,"cut":false,"hidden":true,"merged":[]}
[]
[null,"№","Ответы проверяемого","Правильные ответы","Баллы"]
[null,1,{"$f":"CONCATENATE(Кроссворд!H2,Кроссворд!H3,Кроссворд!H4,Кроссворд!H5,Кроссворд!H6,Кроссворд!H7,Кроссворд!H8,Кроссворд!H9,Кроссворд!H10,Кроссворд!H11,Кроссворд!H12)","v":""},"исполнитель",{"$f":"IF(C3=D3,1,0)","v":0}]
[null,2,{"$f":"CONCATENATE(Кроссворд!F3,Кроссворд!G3,Кроссворд!H3,Кроссворд!I3,Кроссворд!J3,Кроссворд!K3,Кроссворд!L3,Кроссворд!M3,Кроссворд!N3,Кроссворд!O3,Кроссворд!P3,Кроссворд!Q3)","v":""},"дискретность",0]
[null,3,{"$f":"CONCATENATE(Кроссворд!E5,Кроссворд!F5,Кроссворд!G5,Кроссворд!H5,Кроссворд!I5,Кроссворд!J5,Кроссворд!K5,Кроссворд!L5)","v":""},"алгоритм",0]
[null,4,{"$f":"CONCATENATE(Кроссворд!C8,Кроссворд!C9,Кроссворд!C10,Кроссворд!C11,Кроссворд!C12,Кроссворд!C13,Кроссворд!C14,Кроссворд!C15,Кроссворд!C16,Кроссворд!C17)","v":""},"переменная",0]
[null,5,{"$f":"CONCATENATE(Кроссворд!F8,Кроссворд!F9,Кроссворд!F10,Кроссворд!F11,Кроссворд!F12,Кроссворд!F13,Кроссворд!F14,Кроссворд!F15,Кроссворд!F16)","v":""},"словесное",0]
[null,6,{"$f":"CONCATENATE(Кроссворд!N8,Кроссворд!N9,Кроссворд!N10,Кроссворд!N11,Кроссворд!N12,Кроссворд!N13,Кроссворд!N14,Кроссворд!N15,Кроссворд!N16,Кроссворд!N17)","v":""},"понятность",0]
[null,7,{"$f":"CONCATENATE(Кроссворд!B9,Кроссворд!C9,Кроссворд!D9,Кроссворд!E9,Кроссворд!F9,Кроссворд!G9,Кроссворд!H9,Кроссворд!I9,Кроссворд!J9,Кроссворд!K9,Кроссворд!L9,Кроссворд!M9,Кроссворд!N9,Кроссворд!O9,Кроссворд!P9,Кроссворд!Q9)","v":""},"результативность",0]
[null,8,{"$f":"CONCATENATE(Кроссворд!S9,Кроссворд!S10,Кроссворд!S11,Кроссворд!S12,Кроссворд!S13,Кроссворд!S14,Кроссворд!S15,Кроссворд!S16,Кроссворд!S17,Кроссворд!S18,Кроссворд!S19,Кроссворд!S20,Кроссворд!S21,Кроссворд!S22)","v":""},"определённость",0]
[null,9,{"$f":"CONCATENATE(Кроссворд!Q11,Кроссворд!Q12,Кроссворд!Q13,Кроссворд!Q14,Кроссворд!Q15,Кроссворд!Q16,Кроссворд!Q17,Кроссворд!Q18,Кроссворд!Q19,Кроссворд!Q20)","v":""},"массовость",0]
[null,10,{"$f":"CONCATENATE(Кроссворд!L14,Кроссворд!M14,Кроссворд!N14,Кроссворд!O14,Кроссворд!P14,Кроссворд!Q14,Кроссворд!R14,Кроссворд!S14,Кроссворд!T14,Кроссворд!U14)","v":""},"блок-схема",0]
[null,null,null,"Итого:",{"$f":"SUM(E3:E12)","v":0}]
[null,null,null,"Ваша оценка",{"$f":"IF(E13>=10,5,IF(E13>=8,4,IF(E13>=6,3,2)))","v":2}]

{"sheet":"Итоговый","index":3,"n_rows":7,"n_cols":10,"rows_kept":7,"cut":false,"hidden":false,"merged":[[4,3,8,7],[6,9,10,12],[4,9,4,12]]}
[]
[]
[]
[]
[null,null,null,{"$f":"REPT(Титульный!K11,1)","v":""},null,null,null,null,null,"Ваша оценка:"]
[]
[null,null,null,null,null,null,null,null,null,{"$f":"REPT(Расчётный!E14,1)","v":"2"}]